bitfinex-derivatives/quotes_SOLF0:USTF0_20250404
["timestamp","ask_amount","ask_price","bid_price","bid_amount"]
[1743754712564,0.06052624,118.56,118.53,0.0585813]
[1743754714267,8.4366,118.54,118.53,0.0585813]
[1743754714570,0.06052624,118.56,118.53,0.0585813]
[1743754714769,0.06052624,118.56,118.53,8.4957813]
[1743754715164,0.06052624,118.56,118.53,0.0585813]
[1743754715367,8.4362,118.55,118.53,0.0585813]
[1743754715768,0.06052624,118.56,118.53,0.0585813]
[1743754715970,0.06052624,118.56,118.54,8.4361]
[1743754716972,8.49582624,118.56,118.53,8.4954813]
[1743754717268,0.06052624,118.56,118.53,0.0585813]
[1743754717572,0.06052624,118.56,118.55,8.4359]
[1743754717769,0.06052624,118.56,118.53,32.6185813]
[1743754718276,0.06052624,118.56,118.53,41.0554813]
[1743754718473,0.06052624,118.56,118.53,32.6185813]
[1743754718675,0.06052624,118.56,118.53,0.0585813]
[1743754718974,8.4362,118.55,118.53,0.0585813]
[1743754719665,8.49602624,118.56,118.53,0.0585813]
[1743754719866,0.06052624,118.56,118.53,0.0585813]
[1743754720071,34.8463,118.63,118.54,47.36220311]
[1743754720376,8.4321,118.61,118.55,4.462]
[1743754720575,34.8463,118.63,118.57,8.4341]
[1743754720771,8.4327,118.6,118.55,4.462]
[1743754721078,14.74220311,118.6,118.54,32.62]
[1743754721270,0.05495556,118.59,118.56,0.06010181]
[1743754721873,8.4341,118.58,118.56,0.06010181]
[1743754722180,0.05495556,118.59,118.56,0.06010181]
[1743754722370,8.4345,118.57,118.56,0.06010181]
[1743754723481,8.434,118.58,118.56,0.06010181]
[1743754725884,8.48835556,118.59,118.56,8.49520181]
[1743754726084,0.05495556,118.59,118.56,0.06010181]
[1743754726477,0.05495556,118.59,118.57,8.434]
[1743754726783,0.05495556,118.59,118.56,0.06010181]
[1743754727183,8.48835556,118.59,118.56,0.06010181]
[1743754727785,8.48835556,118.59,118.56,8.49520181]
[1743754728683,0.05495556,118.59,118.56,0.06010181]
[1743754729087,8.48825556,118.59,118.56,8.49490181]
[1743754729283,0.05495556,118.59,118.56,0.06010181]
[1743754729583,8.4345,118.57,118.56,0.06010181]
[1743754729985,14.74220311,118.58,118.5,17.11030311]
[1743754730183,8.4364,118.55,118.52,8.4377]
[1743754730383,14.74220311,118.58,118.52,8.4377]
[1743754730586,8.4364,118.55,118.52,8.4377]
[1743754730882,8.4364,118.55,118.53,8.4373]
[1743754731287,8.4364,118.55,118.53,0.05859561]
[1743754731288,0.0558344,118.55,118.53,0.05859561]
[1743754731688,0.0558344,118.55,118.54,8.4366]
[1743754732382,33.14,118.59,118.53,33.21859561]
[1743754732585,47.88220311,118.61,118.53,33.21859561]
[1743754732887,47.88220311,118.61,118.53,35.348]
[1743754733088,8.434,118.58,118.55,8.4355]
[1743754733289,2.2013,118.62,118.56,33.12]
[1743754733491,2.2013,118.62,118.56,33.14]
[1743754733683,8.48892301,118.6,118.58,0.05536182]
[1743754735892,8.433,118.59,118.58,0.05536182]
[1743754743796,41.6,118.59,118.51,8.4385]
[1743754744000,14.74220311,118.56,118.51,8.4385]
[1743754744296,8.4377,118.53,118.51,8.4385]
[1743754744690,8.4377,118.53,118.5,8.4391]
[1743754744995,8.438,118.52,118.51,0.05338316]
[1743754745602,8.4398,118.5,118.47,8.4409]
[1743754745796,33.14,118.53,118.47,8.4409]
[1743754746296,33.14,118.53,118.48,8.4408]
[1743754746999,8.4392,118.51,118.49,0.05594339]
[1743754747397,8.49649817,118.52,118.49,0.05594339]
[1743754747599,0.05809817,118.52,118.49,0.05594339]
[1743754747802,14.80030128,118.52,118.49,0.05594339]
[1743754748095,14.74220311,118.5,118.43,35.6196]
[1743754748302,48.06220311,118.5,118.43,35.6396]
[1743754748488,8.4413,118.48,118.43,35.6396]
[1743754748689,8.4413,118.48,118.45,8.4425]
[1743754749095,0.06249561,118.48,118.45,0.05793428]
[1743754749299,0.06249561,118.48,118.46,8.4419]
[1743754750199,14.74220311,118.53,118.46,48.18220311]
[1743754750397,52.58470311,118.55,118.46,52.78320311]
[1743754750599,52.60470311,118.55,118.51,8.4384]
[1743754750799,52.60470311,118.55,118.46,52.78320311]
[1743754751201,8.4381,118.52,118.49,8.4398]
[1743754751401,0.05639799,118.52,118.49,0.06135163]
[1743754751603,48.28220311,118.51,118.43,2.3196]
[1743754751902,8.4409,118.49,118.45,8.4426]
[1743754752099,48.28220311,118.51,118.45,8.4426]
[1743754752301,48.28220311,118.51,118.43,33.54]
[1743754752601,33.54,118.51,118.46,14.74220311]
[1743754752801,0.06404382,118.48,118.46,48.74281987]
[1743754752994,8.4373,118.53,118.5,8.439]
[1743754753198,53.08470311,118.55,118.48,14.74220311]
[1743754753699,36.204,118.57,118.49,34.04]
[1743754753996,8.4362,118.55,118.52,0.0540531]
[1743754754203,0.06250028,118.54,118.52,0.0540531]
[1743754754606,0.06250028,118.54,118.52,34.5540531]
[1743754754902,0.06250028,118.54,118.52,0.0540531]
[1743754755306,8.49960028,118.54,118.52,0.0540531]
[1743754756208,8.4373,118.53,118.52,0.0540531]
[1743754756410,0.06250028,118.54,118.52,0.0540531]
[1743754757409,0.06250028,118.54,118.53,8.4373]
[1743754759709,0.06250028,118.54,118.52,8.4917531]
[1743754760807,0.06250028,118.54,118.52,0.0540531]
[1743754761011,8.4373,118.53,118.52,0.0540531]
[1743754763814,0.06250028,118.54,118.52,0.0540531]
[1743754764414,8.4373,118.53,118.52,0.0540531]
[1743754765215,8.439,118.51,118.47,41.5953]
[1743754765611,14.74220311,118.53,118.47,12.9381]
[1743754765812,8.4398,118.5,118.47,8.4412]
[1743754766116,8.4398,118.5,118.48,8.4407]
[1743754766312,8.4391,118.51,118.48,8.4407]
[1743754766513,0.0555737,118.5,118.48,8.49545171]
[1743754767013,8.4950737,118.5,118.48,8.49545171]
[1743754767211,8.4950737,118.5,118.48,0.05475171]
[1743754767515,0.0555737,118.5,118.48,0.05475171]
[1743754767711,0.0555737,118.5,118.48,8.49555171]
[1743754768015,8.4952737,118.5,118.48,0.05475171]
[1743754768321,0.0555737,118.5,118.48,0.05475171]
[1743754768511,8.4402,118.49,118.48,0.05475171]
[1743754769013,0.0555737,118.5,118.48,0.05475171]
[1743754769515,0.0555737,118.5,118.49,8.4402]
[1743754771215,0.0555737,118.5,118.48,13.13455171]
[1743754772718,0.0555737,118.5,118.49,8.4402]
[1743754775719,0.0555737,118.5,118.48,8.49525171]
[1743754775918,0.0555737,118.5,118.48,0.05475171]
[1743754776621,0.0555737,118.5,118.49,8.4402]
[1743754780219,2.284,118.59,118.49,25.33560311]
[1743754780425,49.07850861,118.61,118.52,14.74220311]
[1743754780725,81.41810861,118.61,118.54,14.74220311]
[1743754780923,8.4327,118.6,118.54,14.74220311]
[1743754781119,8.4327,118.6,118.57,8.4339]
[1743754781325,0.06216827,118.58,118.57,8.4339]
[1743754781715,2.3047,118.63,118.58,8.4336]
[1743754781923,2.3047,118.63,118.56,49.37976221]
[1743754781924,17.04690311,118.63,118.56,49.37976221]
[1743754782121,8.4328,118.6,118.56,49.32220311]
[1743754782425,2.2004,118.64,118.58,8.4331]
[1743754782829,2.2004,118.64,118.57,23.17650311]
[1743754783128,0.05865993,118.62,118.6,0.06166455]
[1743754783322,8.4316,118.61,118.6,0.06166455]
[1743754784424,8.4337,118.59,118.54,4.3517]
[1743754784723,23.584637,118.64,118.54,27.936337]
[1743754784925,8.4275,118.67,118.6,23.584637]
[1743754785130,13.93662715,118.71,118.62,23.584637]
[1743754785329,13.93662715,118.71,118.64,8.4291]
[1743754785529,0.06029369,118.68,118.65,0.05682051]
[1743754786126,0.06029369,118.68,118.56,23.584637]
[1743754786332,23.584637,118.66,118.57,23.584637]
[1743754786631,38.84,118.67,118.6,8.4319]
[1743754786831,38.84,118.67,118.59,23.584637]
[1743754787031,38.84,118.67,118.61,8.4313]
[1743754787426,0.05771988,118.65,118.63,0.05901933]
[1743754788234,8.48651988,118.65,118.63,0.05901933]
[1743754788530,0.05771988,118.65,118.63,0.05901933]
[1743754788728,8.4295,118.64,118.63,0.05901933]
[1743754789528,8.48681988,118.65,118.63,0.05901933]
[1743754789733,0.05771988,118.65,118.63,0.05901933]
[1743754790233,8.4295,118.64,118.63,0.05901933]
[1743754796437,8.4295,118.64,118.63,1.933e-05]
[1743754796839,32.004637,118.64,118.53,38.54]
[1743754797037,23.584637,118.62,118.54,10.12329419]
[1743754797436,8.4345,118.57,118.54,10.12329419]
[1743754797635,8.4345,118.57,118.54,1.68719419]
[1743754797941,0.06094271,118.57,118.55,8.4355]
[1743754798148,0.06094271,118.57,118.54,1.74698165]
[1743754798640,38.54,118.63,118.59,8.433]
[1743754798839,38.54,118.63,118.55,23.584637]
[1743754799040,38.54,118.63,118.56,4.3249]
[1743754799641,0.06053374,118.61,118.58,0.06311833]
[1743754799841,8.49253374,118.61,118.58,8.49641833]
[1743754800441,0.06053374,118.61,118.58,0.06311833]
[1743754801647,0.06053374,118.61,118.59,8.4329]
[1743754801846,0.06053374,118.61,118.58,0.06311833]
[1743754802037,4.575,118.67,118.58,0.06311833]
[1743754802237,42.895,118.67,118.59,38.32]
[1743754802438,38.32,118.66,118.59,38.32]
[1743754802637,8.4305,118.63,118.6,8.432]
[1743754802844,38.32,118.66,118.59,38.32]
[1743754803240,8.48661365,118.64,118.61,0.05847865]
[1743754803442,0.05661365,118.64,118.61,0.05847865]
[1743754803852,0.05661365,118.64,118.62,8.4306]
[1743754804445,0.05661365,118.64,118.61,0.05847865]
[1743754804647,8.48641365,118.64,118.61,8.48957865]
[1743754804847,0.05661365,118.64,118.61,0.05847865]
[1743754805352,0.05661365,118.64,118.62,8.4306]
[1743754806250,0.05661365,118.64,118.61,0.05847865]
[1743754806655,0.05661365,118.64,118.63,8.4302]
[1743754806847,21.58132232,118.7,118.62,55.04402232]
[1743754807150,19.33212232,118.7,118.62,55.04402232]
[1743754807350,8.4278,118.67,118.64,8.4292]
[1743754807540,19.33212232,118.7,118.62,55.04402232]
[1743754807741,52.92862232,118.72,118.66,8.4279]
[1743754807943,52.92862232,118.72,118.64,14.72862232]
[1743754808147,0.06359521,118.7,118.68,0.05456403]
[1743754808353,0.06359521,118.7,118.68,8.48086403]
[1743754808557,0.06359521,118.7,118.68,0.05456403]
[1743754808855,0.06359521,118.7,118.69,8.4259]
[1743754809454,53.78862232,118.76,118.68,14.78318635]
[1743754809951,14.72862232,118.74,118.69,2.3575]
[1743754810150,14.72862232,118.74,118.67,2.2402]
[1743754810456,0.05324032,118.72,118.69,0.06339596]
[1743754811155,8.4252,118.7,118.69,0.06339596]
[1743754812256,8.426,118.69,118.66,8.4277]
[1743754812750,14.72862232,118.71,118.65,8.4284]
[1743754812952,14.72862232,118.71,118.63,17.03622232]
[1743754813152,14.72862232,118.71,118.64,53.98862232]
[1743754813346,0.061854,118.69,118.66,8.48477014]
[1743754814055,8.487854,118.69,118.66,8.48477014]
[1743754814656,8.4267,118.68,118.66,0.05677014]
[1743754814854,0.061854,118.69,118.66,0.05677014]
[1743754815252,8.4274,118.67,118.66,0.05677014]
[1743754827966,8.427,118.68,118.66,0.05677014]
[1743754828665,8.4274,118.67,118.66,0.05677014]
[1743754829062,0.061854,118.69,118.66,0.05677014]
[1743754829366,0.061854,118.69,118.66,14.78539246]
[1743754829964,0.061854,118.69,118.66,19.32649246]
[1743754831057,8.488154,118.69,118.66,19.32649246]
[1743754831563,8.488154,118.69,118.66,27.75419246]
[1743754832267,8.488154,118.69,118.67,8.4271]
[1743754832567,0.061854,118.69,118.66,19.32649246]
[1743754834069,0.061854,118.69,118.68,14.72862232]
[1743754835171,0.061854,118.69,118.68,23.15522232]
[1743754835374,8.4233,118.73,118.68,14.72862232]
[1743754835570,4.5477,118.76,118.7,14.72862232]
[1743754835770,8.4219,118.75,118.72,8.4235]
[1743754836269,14.72862232,118.76,118.69,14.72862232]
[1743754836469,14.72862232,118.76,118.68,38.7]
[1743754836470,0.06109922,118.75,118.72,0.05794317]
[1743754837273,8.4231,118.73,118.72,0.05794317]
[1743754838273,39.42,118.74,118.72,0.05794317]
[1743754838874,8.48329922,118.75,118.72,0.05794317]
[1743754839573,8.4224,118.74,118.72,0.05794317]
[1743754839775,0.06109922,118.75,118.72,8.48174317]
[1743754840173,8.48319922,118.75,118.72,8.48174317]
[1743754840375,0.06109922,118.75,118.73,8.4231]
[1743754840570,0.06109922,118.75,118.72,0.05794317]
[1743754841070,168.1147987,118.84,118.74,14.72862232]
[1743754841274,182.84342102,118.84,118.76,14.72862232]
[1743754841471,8.4178,118.81,118.77,8.4196]
[1743754841772,182.84342102,118.84,118.77,8.4196]
[1743754842075,8.4184,118.8,118.79,0.05981681]
[1743754846578,8.4198,118.78,118.75,8.4213]
[1743754846972,41.0985,118.8,118.73,53.72862232]
[1743754847174,43.2391,118.8,118.74,8.4221]
[1743754847475,8.47801121,118.78,118.76,0.05585329]
[1743754847677,0.05791121,118.78,118.76,0.05585329]
[1743754848077,8.4203,118.77,118.76,0.05585329]
[1743754848678,0.05791121,118.78,118.76,0.05585329]
[1743754849475,46.87810861,118.9,118.77,53.52862232]
[1743754849681,8.4135,118.87,118.83,8.4157]
[1743754849878,21.42892232,118.89,118.81,14.72862232]
[1743754850175,12.9416,118.89,118.85,8.4143]
[1743754850382,4.5292,118.89,118.85,8.4143]
[1743754850578,4.5292,118.89,118.86,0.05370616]
[1743754850579,0.03072494,118.88,118.86,0.05370616]
[1743754850879,14.72862232,118.87,118.81,8.4171]
[1743754851582,38.68,118.88,118.81,14.72862232]
[1743754851882,8.4142,118.86,118.81,14.72862232]
[1743754852081,8.47903999,118.86,118.83,0.0614989]
[1743754852286,0.06483999,118.86,118.83,0.0614989]
[1743754852483,8.4151,118.85,118.83,0.0614989]
[1743754853181,8.4153,118.84,118.83,0.0614989]
[1743754853587,0.06483999,118.86,118.83,0.0614989]
[1743754853788,0.06483999,118.86,118.83,53.33012122]
[1743754853987,0.06483999,118.86,118.85,8.4146]
[1743754854189,0.06483999,118.86,118.83,53.33012122]
[1743754854585,0.06483999,118.86,118.85,8.4146]
[1743754854790,0.06483999,118.86,118.85,23.14322232]
[1743754854982,2.2197,118.92,118.86,8.4132]
[1743754855177,2.2197,118.92,118.85,14.72862232]
[1743754855487,16.94832232,118.92,118.85,14.72862232]
[1743754855692,16.94832232,118.92,118.86,8.4137]
[1743754855986,16.94832232,118.92,118.85,14.72862232]
[1743754856180,16.94832232,118.92,118.88,0.05762634]
[1743754856384,8.4118,118.89,118.88,0.05762634]
[1743754858393,8.4153,118.84,118.82,4.4604]
[1743754858587,52.96862232,118.9,118.82,4.4604]
[1743754858588,14.72862232,118.88,118.82,4.4604]
[1743754858884,14.72862232,118.88,118.82,12.8768]
[1743754859491,0.05677031,118.86,118.84,0.05971898]
[1743754860289,8.4146,118.85,118.84,0.05971898]
[1743754860685,0.05677031,118.86,118.78,4.4962]
[1743754860891,8.4165,118.83,118.78,19.22482232]
[1743754861092,16.90952232,118.86,118.78,19.22482232]
[1743754861394,16.90952232,118.86,118.79,8.4185]
[1743754861787,8.4164,118.83,118.79,8.4182]
[1743754861988,38.04095098,118.84,118.81,0.06056845]
[1743754862294,46.45675098,118.84,118.81,0.06056845]
[1743754863289,38.04095098,118.84,118.81,0.06056845]
[1743754863490,52.7695733,118.84,118.76,14.72862232]
[1743754863695,8.4189,118.79,118.74,14.72862232]
[1743754863896,37.92,118.78,118.7,484.58]
[1743754864096,37.92,118.78,118.71,14.72862232]
[1743754864301,52.64862232,118.78,118.71,14.72862232]
[1743754864589,52.64862232,118.78,118.71,8.4245]
[1743754864786,8.4218,118.75,118.73,0.05800083]
[1743754864986,0.05653285,118.76,118.73,0.05800083]
[1743754865389,8.422,118.75,118.73,0.05800083]
[1743754866192,8.4224,118.74,118.73,0.05800083]
[1743754866798,8.4218,118.75,118.73,0.05800083]
[1743754867102,0.05653285,118.76,118.73,0.05800083]
[1743754868500,14.78515517,118.76,118.73,0.05800083]
[1743754868804,8.4224,118.74,118.73,0.05800083]
[1743754869001,23.15102232,118.74,118.73,8.3e-07]
[1743754869703,8.4256,118.7,118.66,15.3146]
[1743754870098,8.4263,118.69,118.66,15.3146]
[1743754870300,52.70862232,118.72,118.65,8.4284]
[1743754870701,14.78819656,118.7,118.67,0.06156204]
[1743754871001,37.9,118.69,118.67,0.06156204]
[1743754871205,8.4266,118.68,118.67,0.06156204]
[1743754872698,46.3263,118.69,118.67,0.06156204]
[1743754872903,37.9,118.69,118.67,0.06156204]
[1743754873205,8.4289,118.65,118.61,2.2837]
[1743754873402,37.9,118.69,118.61,2.2837]
[1743754873799,23.55991248,118.68,118.61,2.2837]
[1743754874309,37.9,118.69,118.61,2.2837]
[1743754874505,0.06434102,118.66,118.63,0.06364872]
[1743754875508,0.06434102,118.66,118.63,8.49324872]
[1743754875711,0.06434102,118.66,118.63,0.06364872]
[1743754875907,0.06434102,118.66,118.64,8.429]
[1743754876109,0.06434102,118.66,118.63,0.06364872]
[1743754877511,0.06434102,118.66,118.65,8.4288]
[1743754877708,0.06434102,118.66,118.63,0.06364872]
[1743754879620,0.06434102,118.66,118.65,8.4288]
[1743754881215,4.6657,118.73,118.65,61.13991248]
[1743754881415,37.58,118.74,118.65,61.13991248]
[1743754881813,46.0025,118.74,118.65,61.13991248]
[1743754882018,37.58,118.74,118.65,61.13991248]
[1743754882212,37.58,118.74,118.71,8.4244]
[1743754882616,0.06080358,118.74,118.69,23.55991248]
[1743754882808,0.06080358,118.74,118.71,0.06087173]
[1743754883114,0.06080358,118.74,118.71,61.86078421]
[1743754883314,38.24,118.8,118.71,61.86078421]
[1743754883517,36.52231248,118.82,118.77,8.4202]
[1743754883820,38.2,118.81,118.71,61.79991248]
[1743754884018,38.2,118.81,118.76,8.4203]
[1743754884215,46.6175,118.81,118.76,8.4203]
[1743754884415,0.05797177,118.8,118.77,0.05673502]
[1743754884716,8.47617177,118.8,118.77,0.05673502]
[1743754884910,23.61788425,118.8,118.77,0.05673502]
[1743754885419,8.4195,118.78,118.71,38.24]
[1743754885628,38.16,118.78,118.71,38.24]
[1743754885921,38.14,118.81,118.71,61.79991248]
[1743754886118,4.5454,118.82,118.73,23.55991248]
[1743754886510,0.05484238,118.79,118.76,0.05777589]
[1743754886710,0.05484238,118.79,118.76,39.29777589]
[1743754887015,0.05484238,118.79,118.78,8.4195]
[1743754888923,2.1847,118.85,118.77,23.55991248]
[1743754889120,25.74461248,118.85,118.76,45.9058]
[1743754889518,23.55991248,118.83,118.76,45.9058]
[1743754889716,39.1,118.82,118.71,508.55991248]
[1743754889916,23.55991248,118.81,118.73,8.4227]
[1743754890121,8.4207,118.77,118.75,0.05738281]
[1743754890323,0.06122136,118.78,118.75,0.05738281]
[1743754890324,39.12122136,118.78,118.75,0.05738281]
[1743754890522,41.38832136,118.78,118.75,0.05738281]
[1743754890820,8.4207,118.77,118.75,0.05738281]
[1743754891524,31.97991248,118.77,118.72,1.68463611]
[1743754891713,23.55991248,118.75,118.72,1.68463611]
[1743754892114,23.55991248,118.75,118.68,2.3059]
[1743754892420,25.73871248,118.75,118.66,524.0]
[1743754892724,0.05795809,118.73,118.71,8.4241]
[1743754893223,0.05795809,118.73,118.7,0.06455463]
[1743754893724,23.61787057,118.73,118.7,0.06455463]
[1743754894327,8.4242,118.72,118.7,0.06455463]
[1743754894625,23.61787057,118.73,118.7,0.06455463]
[1743754895025,2.2999,118.72,118.7,0.06455463]
[1743754895627,8.4245,118.71,118.7,0.06455463]
[1743754898021,8.4245,118.71,118.7,5.463e-05]
[1743754900227,8.42,118.71,118.63,2.2123]
[1743754900426,64.52491248,118.7,118.63,2.2123]
[1743754900618,23.55991248,118.68,118.6,4.3644]
[1743754901124,8.4298,118.64,118.63,0.0584187]
[1743754902220,0.06349953,118.65,118.63,0.0584187]
[1743754903828,0.06349953,118.65,118.63,8.4882187]
[1743754904026,0.06349953,118.65,118.63,0.0584187]
[1743754905229,8.4295,118.64,118.63,0.0584187]
[1743754905433,23.62341201,118.65,118.57,41.0048]
[1743754905634,25.79121248,118.65,118.57,42.69156731]
[1743754905822,8.4327,118.6,118.58,1.68662506]
[1743754906531,8.49464101,118.6,118.58,1.74007718]
[1743754906926,8.433,118.59,118.58,1.74007718]
[1743754907336,0.06194101,118.6,118.47,1.46761134]
[1743754907627,23.55991248,118.57,118.5,8.4391]
[1743754907934,38.52,118.56,118.5,8.4391]
[1743754908130,38.52,118.56,118.51,8.4387]
[1743754908331,38.52,118.56,118.47,66.54801248]
[1743754908532,0.05349488,118.55,118.52,0.05436044]
[1743754908731,0.05349488,118.55,118.52,38.51436044]
[1743754909933,0.05349488,118.55,118.52,46.95196044]
[1743754910634,0.05349488,118.55,118.53,8.4372]
[1743754910834,0.05349488,118.55,118.52,38.51436044]
[1743754911838,0.05349488,118.55,118.54,8.4366]
[1743754912239,23.55991248,118.61,118.53,4.5192]
[1743754912438,23.55991248,118.61,118.53,6.6892]
[1743754913033,23.55991248,118.61,118.54,8.4363]
[1743754913234,8.4344,118.58,118.56,0.05766809]
[1743754913439,0.05517021,118.59,118.56,0.05766809]
[1743754914238,8.4345,118.57,118.56,0.05766809]
[1743754914443,0.05517021,118.59,118.56,0.05766809]
[1743754914843,38.23517021,118.59,118.56,0.05766809]
[1743754915444,25.74371248,118.58,118.56,0.05766809]
[1743754915643,38.23517021,118.59,118.56,0.05766809]
[1743754917638,8.4345,118.57,118.56,0.05766809]
[1743754920240,0.05517021,118.59,118.56,0.05766809]
[1743754920444,0.05517021,118.59,118.56,37.89766809]
[1743754920634,0.05517021,118.59,118.56,0.05766809]
[1743754920840,23.61508269,118.59,118.56,0.05766809]
[1743754921333,23.55991248,118.57,118.5,2.2457]
[1743754921642,23.55991248,118.57,118.51,1.68762129]
[1743754921842,8.4356,118.56,118.5,40.0457]
[1743754922146,2.3484,118.6,118.5,40.0457]
[1743754922342,8.4336,118.59,118.51,23.55991248]
[1743754922543,0.06104595,118.56,118.54,0.06052424]
[1743754922740,0.06104595,118.56,118.54,37.84052424]
[1743754923453,0.06104595,118.56,118.55,8.4359]
[1743754924235,0.06104595,118.56,118.54,46.27672424]
[1743754924441,0.06104595,118.56,118.54,37.84052424]
[1743754924946,0.06104595,118.56,118.54,46.27682424]
[1743754925244,0.06104595,118.56,118.54,37.84052424]
[1743754926049,0.06104595,118.56,118.54,0.06052424]
[1743754926539,8.4359,118.55,118.54,0.06052424]
[1743754926942,8.4385,118.52,118.49,8.4397]
[1743754927247,30.33661248,118.57,118.48,44.491]
[1743754927647,8.437,118.54,118.51,8.4386]
[1743754927845,30.33661248,118.57,118.48,44.491]
[1743754928048,8.4377,118.53,118.51,0.05611727]
[1743754928749,0.06218473,118.54,118.51,0.05611727]
[1743754933044,2.23988473,118.54,118.51,0.05611727]
[1743754936652,0.06218473,118.54,118.51,0.05611727]
[1743754937554,8.4377,118.53,118.51,0.05611727]
[1743754937755,0.06218473,118.54,118.51,0.05611727]
[1743754938346,2.2564,118.6,118.52,37.08]
[1743754938552,99.66906826,118.63,118.53,27.97261248]
[1743754938854,8.4326,118.6,118.53,27.97261248]
[1743754939256,30.32081248,118.63,118.53,27.97261248]
[1743754939557,0.05779184,118.58,118.55,0.05914674]
[1743754939749,0.05779184,118.58,118.55,37.17914674]
[1743754940453,8.4316,118.61,118.55,37.17914674]
[1743754940848,37.04,118.62,118.55,37.12]
[1743754941045,23.55991248,118.59,118.53,4.4127]
[1743754941250,60.77991248,118.59,118.53,4.4127]
[1743754941450,0.05679624,118.57,118.55,0.05672475]
[1743754943156,8.49159624,118.57,118.55,0.05672475]
[1743754943454,0.05679624,118.57,118.55,0.05672475]
[1743754945255,0.05679624,118.57,118.55,37.09672475]
[1743754945456,37.14,118.62,118.55,37.09672475]
[1743754945655,25.86631248,118.63,118.55,37.09672475]
[1743754945852,8.4323,118.61,118.55,37.04]
[1743754946358,8.4325,118.6,118.55,37.04]
[1743754946556,0.05888533,118.59,118.57,0.05439689]
[1743754949060,0.05888533,118.59,118.58,36.9]
[1743754949258,0.05888533,118.59,118.58,47.7019]
[1743754950653,0.05888533,118.59,118.58,39.2682]
[1743754951053,62.55861248,118.66,118.58,39.2682]
[1743754951355,62.55861248,118.66,118.59,10.6936]
[1743754951554,8.4299,118.64,118.59,2.2612]
[1743754951955,38.9987,118.66,118.59,2.2612]
[1743754952258,8.4864429,118.63,118.6,0.06364008]
[1743754952462,0.0559429,118.63,118.6,0.06364008]
[1743754952959,8.4316,118.61,118.6,0.06364008]
[1743754955761,8.4339,118.58,118.51,2.2021]
[1743754955962,8.4339,118.58,118.52,38.7334]
[1743754956162,8.4339,118.58,118.52,40.9503]
[1743754956963,0.06357912,118.56,118.54,0.0580808]
[1743754957861,0.06357912,118.56,118.55,36.42]
[1743754959666,8.4328,118.6,118.55,36.42]
[1743754960168,8.4319,118.61,118.55,36.42]
[1743754960761,0.05487287,118.59,118.57,0.06051156]
[1743754962969,0.05487287,118.59,118.57,0.06051156]
[1743754963174,8.4337,118.58,118.57,0.06051156]
[1743754966072,23.55991248,118.58,118.52,36.02]
[1743754966269,27.92571248,118.58,118.49,485.76]
[1743754966474,23.55991248,118.56,118.5,35.98]
[1743754966673,23.55991248,118.56,118.48,2.194]
[1743754966873,23.55991248,118.56,118.49,35.96]
[1743754967074,8.4376,118.53,118.49,35.96]
[1743754967271,8.4376,118.53,118.51,0.05350169]
[1743754967475,0.05379147,118.54,118.51,0.05350169]
[1743754968176,0.05379147,118.54,118.52,35.92]
[1743754969480,0.05379147,118.54,118.51,0.05350169]
[1743754969976,8.49089147,118.54,118.51,0.05350169]
[1743754970276,0.05379147,118.54,118.51,0.05350169]
[1743754970784,8.49049147,118.54,118.51,0.05350169]
[1743754971973,0.05379147,118.54,118.51,0.05350169]
[1743754974374,8.49039147,118.54,118.51,0.05350169]
[1743754974582,0.05379147,118.54,118.51,0.05350169]
[1743754974977,0.05379147,118.54,118.51,35.71350169]
[1743754977185,8.49039147,118.54,118.51,35.71350169]
[1743754977684,0.05379147,118.54,118.51,35.71350169]
[1743754978383,8.49069147,118.54,118.51,35.71350169]
[1743754979488,0.05379147,118.54,118.51,35.71350169]
[1743754981692,0.05379147,118.54,118.51,35.71350169]
[1743754985080,881.28949553,118.66,118.51,50.46942124]
[1743754985081,14.75591955,118.6,118.51,50.46942124]
[1743754985280,14.75591955,118.6,118.52,2.2333]
[1743754985685,14.75591955,118.6,118.53,2.3692]
[1743754985880,14.75591955,118.6,118.54,35.58]
[1743754986085,23.19151955,118.56,118.51,35.56]
[1743754986389,23.19151955,118.56,118.52,0.05933742]
[1743754986589,0.05506287,118.55,118.52,0.05933742]
[1743754987184,8.49106287,118.55,118.52,0.05933742]
[1743754987586,0.05506287,118.55,118.52,0.05933742]
[1743754992391,35.33506287,118.55,118.43,487.14810665]
[1743754992589,58.88325281,118.55,118.46,3.09862473]
[1743754992785,8.4369,118.54,118.46,36.94833361]